[Event "Tata Steel India Women Rapid 2024"]
[Site "Kolkata"]
[Date "2024.11.15"]
[Round "8.2"]
[White "Dzagnidze, Nana"]
[Black "Gunina, Valentina"]
[Result "0-1"]
[ECO "D10"]
[WhiteElo "2518"]
[BlackElo "2425"]
[Annotator "RC"]
[PlyCount "174"]
[EventDate "2024.11.06"]
[EventType "tourn"]
[EventCountry "IND"]
[SourceTitle "playchess.com"]
[Source "ChessBase"]
[SourceQuality "1"]
[TimeControl "1500+10"]

1. d4 {[%emt 0:00:05]} d5 {[%emt 0:00:01]} 2. c4 {[%emt 0:00:03]} c6 {[%emt 0:00:02]} 3. cxd5 {[%emt 0:00:08]} cxd5 {[%emt 0:00:01]} 4. Bf4 {[%emt 0:00:01]} Nf6 {[%emt 0:00:05]} 5. Nc3 {[%emt 0:00:12]} Nc6 {[%emt 0:00:01]} 6. e3 {[%emt 0:00:02]} a6 {[%emt 0:00:02]} 7. Bd3 {[%emt 0:00:15]} Bg4 {[%emt 0:00:03]} 8. Nge2 {[%emt 0:00:05]} e6 {[%emt 0:00:03]} 9. Rc1 {[%emt 0:00:36]} Bd6 {[%emt 0:00:14]} 10. Bxd6 {[%emt 0:00:35]} Qxd6 {[%emt 0:00:02]} 11. O-O {[%emt 0:00:02]} O-O {[%emt 0:00:02]} 12. Qd2 {[%emt 0:01:46]} Bh5 {[%emt 0:00:14]} 13. Nf4 {[%emt 0:00:33]} Bg6 {[%emt 0:00:01]} 14. Nxg6 {[%emt 0:03:51]} hxg6 {[%emt 0:00:03]} 15. Na4 {[%emt 0:00:03]} Rac8 {[%emt 0:00:21]} 16. Nc5 {[%emt 0:00:26]} Rc7 {[%emt 0:00:02]} 17. f4 {[%emt 0:03:06]} Nd7 {[%emt 0:03:06]} 18. Nxd7 {[%emt 0:03:44]} Qxd7 {[%emt 0:00:05]} 19. Rc5 {[%emt 0:00:06]} Rfc8 {[%emt 0:00:20]} 20. Rfc1 {[%emt 0:00:02]} Qe7 {[%emt 0:01:10]} 21. a3 {[%emt 0:02:14]} g5 {[%emt 0:00:04]} 22. Qf2 {[%emt 0:01:10]} gxf4 {[%emt 0:02:07]} 23. Qxf4 {[%emt 0:00:07]} a5 {[%emt 0:00:35]} 24. h3 {[%emt 0:02:21]} e5 {[%emt 0:02:18]} 25. Qf2 {[%emt 0:00:58]} e4 {[%emt 0:18:18]} 26. Bb1 {[%emt 0:00:40]} Nd8 {[%emt 0:00:00]} 27. Rxc7 {[%emt 0:01:03]} Rxc7 {[%emt 0:00:00]} 28. Rxc7 {[%emt 0:00:01]} Qxc7 {[%emt 0:00:00]} 29. Ba2 {[%emt 0:00:08]} Qd7 {[%emt 0:00:00]} 30. Qf4 {[%emt 0:00:59]} Nc6 {[%emt 0:00:00]} 31. Qg5 {[%emt 0:00:40]} Ne7 {[%emt 0:00:00]} 32. Qe5 {[%emt 0:00:02]} f5 {[%emt 0:00:00]} 33. Qb8+ {[%emt 0:01:03]} Kf7 {[%emt 0:00:00]} 34. Qe5 {[%emt 0:03:43]} Qc6 {[%emt 0:00:00]} 35. Kh2 {[%emt 0:00:00]} g6 {[%emt 0:00:00]} 36. h4 {[%emt 0:00:00]} Ke8 {[%emt 0:00:00]} 37. Qb8+ {[%emt 0:00:00]} Kd7 {[%emt 0:00:00]} 38. Qe5 {[%emt 0:00:00]} Qb5 {[%emt 0:00:00]} 39. a4 {[%emt 0:00:06]} Qc6 {[%emt 0:00:00]} 40. Bb3 {[%emt 0:00:03]} Qe6 {[%emt 0:00:00]} 41. Qxe6+ {[%emt 0:00:21]} Kxe6 {[%emt 0:00:00]} 42. Kg3 {[%emt 0:00:09]} Nc6 {[%emt 0:00:00]} 43. Bd1 {[%emt 0:00:03]} Kf6 {[%emt 0:00:00]} 44. Be2 {[%emt 0:00:41]} g5 {[%emt 0:03:10]} 45. hxg5+ {[%emt 0:00:04]} Kxg5 {[%emt 0:00:00]} 46. Bb5 {[%emt 0:00:09]} Nb4 {[%emt 0:00:00]} 47. Bd7 {[%emt 0:00:12]} Nd3 {[%emt 0:00:30]} 48. b3 {[%emt 0:00:14]} f4+ {[%emt 0:00:00]} 49. exf4+ {[%emt 0:00:02]} Nxf4 {[%emt 0:00:00]} 50. Kf2 {[%emt 0:00:05]} Kf6 {[%emt 0:00:00]} 51. Bc8 {[%emt 0:00:06]} b6 {[%emt 0:00:00]} 52. g3 {[%emt 0:00:16]} Ne6 {[%emt 0:00:00]} 53. Ke3 {[%emt 0:00:25]} Ke7 {[%emt 0:00:00]} 54. Bb7 {[%emt 0:00:09]} Kd6 {[%emt 0:00:00]} 55. Bc8 {[%emt 0:00:04]} Nd8 {[%emt 0:00:00]} 56. Bh3 {[%emt 0:00:17]} Nc6 {[%emt 0:00:00]} 57. g4 {[%emt 0:00:06]} Nb4 {[%emt 0:00:00]} 58. Kd2 {[%emt 0:00:01]} Ke7 {[%emt 0:00:00]} 59. g5 {[%emt 0:00:04]} Kf7 {[%emt 0:00:00]} 60. Bf5 {[%emt 0:00:04]} Kg7 {[%emt 0:00:00]} 61. Kc3 {[%emt 0:00:12]} Nc6 {[%emt 0:00:00]} 62. Bd7 {[%emt 0:00:11]} Ne7 {[%emt 0:00:00]} 63. Be8 {[%emt 0:00:01]} Kf8 {[%emt 0:00:00]} 64. Bh5 {[%emt 0:00:02]} Nc6 {[%emt 0:00:00]} 65. Bg4 {[%emt 0:00:20]} Kf7 {[%emt 0:00:00]} 66. Bh5+ {[%emt 0:00:05]} Kg7 {[%emt 0:00:00]} 67. Be8 {[%emt 0:00:05]} Nd8 {[%emt 0:00:00]} 68. Kd2 {[%emt 0:00:19]} Kf8 {[%emt 0:00:00]} 69. Bb5 {[%emt 0:00:26]} Kf7 {[%emt 0:00:00]} 70. Ke3 {[%emt 0:00:05]} Ke6 {[%emt 0:00:00]} 71. Kf4 {[%emt 0:00:18]} Nb7 {[%emt 0:00:02]} 72. Be2 {[%emt 0:00:10]} Nd8 {[%emt 0:00:56]} 73. Bg4+ {[%emt 0:00:02]} Kd6 {[%emt 0:00:47]} 74. g6 {[%emt 0:00:11]} Ne6+ {[%emt 0:01:23]} 75. Bxe6 {[%emt 0:00:17]} Kxe6 {[%emt 0:00:01]} 76. Kg5 {[%emt 0:00:02]} e3 {[%emt 0:00:01]} 77. Kh6 {[%emt 0:00:02]} e2 {[%emt 0:00:05]} 78. g7 {[%emt 0:00:01]} e1=Q {[%emt 0:00:02]} 79. g8=Q+ {[%emt 0:00:02]} Ke7 {[%emt 0:00:13]} 80. Qxd5 {[%emt 0:00:19]} Qe6+ {[%emt 0:00:07]} 81. Qxe6+ {[%emt 0:00:02]} Kxe6 {[%emt 0:00:01]} 82. Kg7 {[%emt 0:00:51]} Kd5 {[%emt 0:00:02]} 83. Kf6 {[%emt 0:00:02]} Kxd4 {[%emt 0:00:02]} 84. Ke6 {[%emt 0:00:05]} Kc3 {[%emt 0:00:01]} 85. Kd5 {[%emt 0:00:01]} Kxb3 {[%emt 0:00:01]} 86. Kc6 {[%emt 0:00:02]} Kxa4 {[%emt 0:00:01]} 87. Kxb6 {[%emt 0:00:01]} Kb4 {[%emt 0:00:01]} 0-1

[Event "Tata Steel India Women Rapid 2024"]
[Site "Kolkata"]
[Date "2024.11.15"]
[Round "8.3"]
[White "Goryachkina, Aleksandra"]
[Black "Divya Deshmukh"]
[Result "1-0"]
[ECO "D37"]
[WhiteElo "2528"]
[BlackElo "2493"]
[Annotator "TA"]
[PlyCount "77"]
[EventDate "2024.11.06"]
[EventType "tourn"]
[EventCountry "IND"]
[SourceTitle "playchess.com"]
[Source "ChessBase"]
[SourceQuality "1"]
[TimeControl "1500+10"]

{[%evp 9,77,22,25,17,34,45,44,41,45,36,41,43,41,32,22,22,34,38,48,30,38,-37,-26,-26,-28,-25,-22,-25,-6,-18,0,0,14,0,0,5,0,0,0,0,0,6,10,0,20,-25,-3,-16,0,0,0,0,14,-49,-50,-50,0,-48,-48,-37,0,0,1893,1838,29978,29978,29987,29981,29988,29965]} 1. d4 {[%emt 0:00:03]} Nf6 {[%emt 0:00:08]} 2. c4 {[%emt 0:00:04]} e6 {[%emt 0:00:03]} 3. Nf3 {[%emt 0:00:04]} d5 {[%emt 0:00:02]} 4. Nc3 {[%emt 0:00:05]} Nbd7 {[%emt 0:00:05]} 5. Bf4 {[%emt 0:00:38]} dxc4 {[%emt 0:00:37]} 6. e3 {[%emt 0:00:06] D37: Queen's Gambit Declined: 5 Bf4.} b5 {[%emt 0:00:06] 6...b5 is the modern continuation.} 7. Nxb5 {[%emt 0:00:20]} Bb4+ {[%emt 0:00:02]} 8. Nc3 {[%emt 0:00:29]} Nd5 {[%emt 0:00:07]} 9. a3 {[%emt 0:00:27]} Nxc3 {[%emt 0:00:04]} 10. Qd2 {[%emt 0:00:05]} Bxa3 {[%emt 0:00:03]} 11. Qxc3 {[%emt 0:00:33]} Bd6 {[%emt 0:00:04]} 12. Bxc4 {[%emt 0:00:15]} O-O {[%emt 0:00:24]} 13. Bg5 $146 {[%emt 0:01:03]} ({Predecessor:} 13. O-O Nb6 14. Bxd6 cxd6 15. Bd3 Bb7 16. e4 f5 17. Rfe1 Qf6 18. Qc7 Bxe4 19. Bxe4 fxe4 20. Rxe4 {1-0 Ponomarev,G (2318)-Aleksandrov,A (2408) St Petersburg Korchnoi Memorial op 2024 (7)}) 13... Qe8 {[%emt 0:04:16]} 14. O-O {[%emt 0:03:10]} Bb7 {[%emt 0:00:27]} 15. Ne5 {[%emt 0:05:47]} (15. Be2 $14) 15... Nb6 $15 {[%emt 0:03:07]} 16. Nf3 $1 {[%emt 0:00:37]} f6 {[%emt 0:03:33][%cal Ob7f3] Threatens to win with ...Bxf3!} 17. Bh4 {[%emt 0:00:45]} Nxc4 {[%emt 0:07:52]} 18. Qxc4 {[%emt 0:00:03]} Bd5 {[%emt 0:00:15] A strong pair of Bishops.} 19. Qe2 {[%emt 0:00:22]} Qg6 {[%emt 0:00:14]} 20. Bg3 {[%emt 0:00:32]} f5 {[%emt 0:00:49]} 21. Ne5 {[%emt 0:02:12]} Bxe5 {[%emt 0:00:05]} 22. dxe5 {[%emt 0:00:02]} f4 {[%emt 0:00:17]} 23. exf4 {[%emt 0:00:52]} (23. Bxf4 $2 Qxg2#) 23... Rxf4 {[%emt 0:00:02]} 24. Rfc1 {[%emt 0:01:55][%cal Oc1c7]} h5 {[%emt 0:00:30][%cal Oh5h4] Strongly threatening ...h4!} 25. f3 {[%emt 0:01:41]} (25. Bxf4 $2 Qxg2#) 25... Rf7 {[%emt 0:00:04][%cal Oh5h4]} 26. Ra4 {[%emt 0:00:41]} c6 {[%emt 0:00:13]} 27. Qe3 {[%emt 0:00:32]} Rb7 {[%emt 0:01:17]} 28. b4 {[%emt 0:00:43]} Rf7 {[%emt 0:00:09][%cal Oh5h4] White must now prevent ...h4!} 29. Qd4 {[%emt 0:00:50]} Raf8 {[%emt 0:01:56][%cal Oh5h4]} 30. Ra3 {[%emt 0:01:01]} (30. Rxa7 $2 Rxa7 31. Qxa7 h4 32. Bxh4 Qh6 $19 (32... Rxf3 $2 33. Bg3 $19)) 30... Rf5 {[%emt 0:00:24]} 31. Rxa7 {[%emt 0:00:51] [#]} (31. Rca1 $11) 31... Bxf3 $1 {[%emt 0:01:47]} 32. gxf3 {[%emt 0:00:31]} Rf4 {[%emt 0:00:26] Wards off Qe4} (32... Rxf3 $15 33. Kh1 (33. Rxc6 Rxg3+ 34. hxg3 Qxg3+ 35. Kh1 Qh3+ 36. Kg1 Rf1#) 33... Qf5) 33. Qd7 {[%emt 0:00:38]} (33. Qf2 $11 h4 34. Ra3) 33... Rxf3 {[%emt 0:00:06]} (33... h4 $6 34. Qxg7+ Qxg7 35. Rxg7+ Kxg7 36. Bxf4 Rxf4 37. Rxc6 $16) (33... R4f7 $5 34. Qd4 $8 Rxf3 $11) 34. Qxc6 {[%emt 0:00:36] Ra8 would now be deadly.} (34. Rxc6 $2 {gets mated.} Rf1+ (34... Qb1+ {leads to mate.} 35. Rc1 Qxc1+ 36. Qd1 Qxd1+ 37. Be1 Qxe1+ 38. Kg2 Qf1#) 35. Kg2 R8f2+ 36. Kh3 Qg4#) 34... h4 {[%emt 0:00:34]} 35. Ra8 $1 {[%emt 0:00:06][%cal Ba7a8,Ba8f8,Bf8f4][%mdl 32]} Rxg3+ $2 {[%emt 0:00:39][%mdl 8192] [#]} (35... Rxa8 $11 36. Qxf3 Rf8) 36. Kh1 $1 $18 {[%emt 0:01:45]} ({Stronger than} 36. hxg3 Qxg3+ 37. Kh1 Qh3+ 38. Kg1 Qg3+ 39. Kh1 Qh3+ 40. Kg1 Qg3+ $11) 36... Rg5 {[%emt 0:00:12]} 37. Rxf8+ {[%emt 0:00:09]} Kh7 {[%emt 0:00:07]} 38. Rf4 {[%emt 0:00:15]} Rh5 {[%emt 0:00:11]} 39. Qe4 {[%emt 0:00:04]} 1-0

[Event "Tata Steel India Women Rapid 2024"]
[Site "Kolkata"]
[Date "2024.11.15"]
[Round "8.4"]
[White "Dronavalli, Harika"]
[Black "Kosteniuk, Alexandra"]
[Result "1-0"]
[ECO "D02"]
[WhiteElo "2493"]
[BlackElo "2487"]
[Annotator "TA"]
[PlyCount "85"]
[EventDate "2024.11.06"]
[EventType "tourn"]
[EventCountry "IND"]
[SourceTitle "playchess.com"]
[Source "ChessBase"]
[SourceQuality "1"]
[TimeControl "1500+10"]

{[%evp 15,85,0,25,9,16,11,5,0,4,1,2,6,49,49,102,78,77,47,46,41,70,72,85,56,52,27,29,38,26,43,32,34,37,25,51,10,54,70,48,58,58,64,103,102,201,198,178,175,243,230,443,436,447,447,661,629,1033,883,1672,1558,1737,1480,1381,1321,1933,1166,1339,2993,29970,1782,1854,1693]} 1. Nf3 {[%emt 0:00:02]} d5 {[%emt 0:00:01]} 2. d4 {[%emt 0:00:03]} Nf6 {[%emt 0:00:04]} 3. c3 {[%emt 0:00:01]} g6 {[%emt 0:00:16]} 4. g3 {[%emt 0:00:02]} Bg7 {[%emt 0:00:01]} 5. Bg2 {[%emt 0:00:01]} O-O {[%emt 0:00:16]} 6. O-O {[%emt 0:00:02]} Bf5 {[%emt 0:00:39]} 7. Nbd2 {[%emt 0:00:18] D02: 1 d4 d5 2 Nf3 sidelines, including 2...Nf6 3 g3 and 2...Nf6 3 Bf4.} Qc8 {[%emt 0:00:26]} 8. Re1 {[%emt 0:00:03]} a5 {[%emt 0:00:21]} 9. a4 {[%emt 0:00:16]} Na6 {[%emt 0:00:20]} 10. Nh4 {[%emt 0:02:18]} Bh3 $146 {[%emt 0:00:12]} ({Predecessor:} 10... Bg4 11. Nhf3 c5 12. Nf1 cxd4 13. Nxd4 e5 14. Nb5 Nc5 15. Be3 Be6 16. Nd2 b6 {0-1 Stanic,V (1794)-Biti,A (2080) SLO-chT2 West 2010 (4.5)}) 11. e4 {[%emt 0:01:02]} (11. Bxh3 {is interesting.} Qxh3 12. e4 e5 13. dxe5 Ng4 14. Nhf3) 11... Bxg2 {[%emt 0:00:31]} 12. Nxg2 {[%emt 0:01:29]} dxe4 {[%emt 0:00:03]} 13. Nxe4 {[%emt 0:00:02]} c5 {[%emt 0:00:57]} 14. d5 {[%emt 0:02:11]} c4 {[%emt 0:03:11]} (14... Rd8 $14) 15. Nxf6+ {[%emt 0:00:36]} Bxf6 {[%emt 0:00:02]} 16. Re4 {[%emt 0:08:52]} Rd8 {[%emt 0:00:01]} 17. Ne3 {[%emt 0:00:07]} h5 {[%emt 0:00:29]} 18. Rxc4 {[%emt 0:00:36]} ({Of course not} 18. Nxc4 Qf5 19. Rf4 Rxd5 $11) 18... Qd7 {[%emt 0:00:09]} 19. Qf3 {[%emt 0:00:07]} Nc7 {[%emt 0:03:03]} 20. Bd2 {[%emt 0:01:20]} Nxd5 {[%emt 0:03:11]} 21. Nxd5 {[%emt 0:00:01]} Qxd5 {[%emt 0:00:02]} 22. Qxd5 {[%emt 0:00:01]} Rxd5 {[%emt 0:00:01]} 23. Be3 {[%emt 0:00:01]} Rad8 {[%emt 0:01:40]} 24. Kg2 {[%emt 0:00:13]} Be5 {[%emt 0:01:02]} 25. Ra2 {[%emt 0:00:36]} Ra8 {[%emt 0:02:21]} 26. Ra3 {[%emt 0:00:27]} b5 $1 {[%emt 0:02:49]} 27. axb5 {[%emt 0:01:28]} Rxb5 {[%emt 0:00:05]} 28. b4 {[%emt 0:01:53]} Bd6 {[%emt 0:00:28]} 29. Ra4 {[%emt 0:00:06]} f6 {[%emt 0:00:54]} (29... Kf8 $16 30. Rc6 Be5) 30. Rc6 $18 {[%emt 0:00:20]} Kf7 {[%emt 0:00:20] [#]} 31. Rb6 $1 {[%emt 0:01:39]} ({Resist} 31. Bb6 Ke6 $16) 31... Rf5 {[%emt 0:01:09]} (31... Rxb6 $142 32. Bxb6 Rc8) 32. c4 $18 {[%emt 0:00:15]} Rc8 $2 {[%emt 0:01:08]} (32... Ke8 33. c5 Bc7) 33. bxa5 $18 {[%emt 0:00:02]} (33. Rxa5 Rxc4 34. Rxf5 gxf5 $15) 33... Bc5 {[%emt 0:00:00]} 34. Rb5 {[%emt 0:00:33]} Bxe3 {[%emt 0:00:02]} (34... Ke6 $142 35. a6 Kd6) 35. Rxf5 $18 {[%emt 0:00:01]} ({Weaker is} 35. fxe3 Rxc4 36. Rxc4 Rxb5 $14) 35... gxf5 {[%emt 0:00:01]} 36. fxe3 {[%emt 0:00:01]} Ke6 {[%emt 0:00:02]} 37. a6 {[%emt 0:01:01]} Kd6 {[%emt 0:00:01]} 38. a7 {[%emt 0:00:01]} Ra8 {[%emt 0:00:01]} 39. Kh3 {[%emt 0:00:02]} Kc6 {[%emt 0:00:37]} 40. Kh4 {[%emt 0:00:02]} Kb7 {[%emt 0:00:01]} 41. Kxh5 {[%emt 0:00:03]} Rh8+ {[%emt 0:00:06]} 42. Kg6 {[%emt 0:00:01]} Ka8 {[%emt 0:00:01]} 43. Ra2 {[%emt 0:00:23]} 1-0

[Event "Tata Steel India Women Rapid 2024"]
[Site "Kolkata"]
[Date "2024.11.15"]
[Round "8.5"]
[White "Vantika Agrawal"]
[Black "Koneru, Humpy"]
[Result "1-0"]
[ECO "D35"]
[WhiteElo "2392"]
[BlackElo "2530"]
[Annotator "TA"]
[PlyCount "96"]
[EventDate "2024.11.06"]
[EventType "tourn"]
[EventCountry "IND"]
[SourceTitle "playchess.com"]
[Source "ChessBase"]
[SourceQuality "1"]
[TimeControl "1500+10"]

{[%evp 12,96,0,-11,0,-20,-20,-19,-4,-8,0,0,0,-10,0,0,4,-20,-19,-21,-6,-10,-17,-47,-27,-41,-14,-19,-22,-12,-18,-54,0,-16,-15,-92,-92,-100,-112,-95,-98,-87,-108,-85,-31,-32,-22,-14,-21,-17,-15,-22,-33,-24,-27,-22,0,-23,0,0,0,-29,-30,-36,-52,-41,0,0,17,21,496,430,840,793,29988,29989,29989,29990,29990,29991,29993,29994,29994,29995,29996,29997,29998]} 1. d4 {[%emt 0:00:17]} Nf6 {[%emt 0:00:05]} 2. c4 {[%emt 0:00:03]} e6 {[%emt 0:00:04]} 3. Nf3 {[%emt 0:00:03]} d5 {[%emt 0:00:05]} 4. Nc3 {[%emt 0:00:03]} Be7 {[%emt 0:00:07]} 5. cxd5 {[%emt 0:00:07]} exd5 {[%emt 0:00:05]} 6. Bf4 {[%emt 0:00:06]} c6 {[%emt 0:00:15]} 7. e3 {[%emt 0:00:18]} Nh5 {[%emt 0:00:30]} 8. h3 {[%emt 0:00:25]} Nxf4 {[%emt 0:02:27]} 9. exf4 {[%emt 0:00:03]} O-O {[%emt 0:01:10] The position is equal.} 10. Bd3 {[%emt 0:00:23]} Bd6 {[%emt 0:01:36]} 11. g3 {[%emt 0:00:21]} Nd7 {[%emt 0:02:50]} 12. Kf1 {[%emt 0:01:27] Active counter play!} b6 {[%emt 0:01:59]} 13. Kg2 {[%emt 0:07:45]} Nf6 {[%emt 0:01:01]} 14. Qd2 {[%emt 0:01:35]} c5 {[%emt 0:02:05]} 15. Rad1 {[%emt 0:01:59][%cal Oc3d5]} Bb7 {[%emt 0:01:03]} 16. Rhe1 {[%emt 0:01:16]} a6 {[%emt 0:01:08]} 17. Kh2 {[%emt 0:11:49]} Qc7 {[%emt 0:00:22]} 18. Bf1 {[%emt 0:00:00]} h6 {[%emt 0:06:22]} 19. Bg2 {[%emt 0:00:00]} Rfd8 {[%emt 0:00:16]} 20. Qc2 {[%emt 0:00:00]} Rac8 {[%emt 0:00:11]} 21. Qb1 {[%emt 0:00:00]} Ne4 {[%emt 0:01:38]} (21... b5 $15) 22. Nxe4 {[%emt 0:00:00]} dxe4 {[%emt 0:00:02]} 23. Ne5 {[%emt 0:00:11] [#]} (23. Nh4 $1 $11) 23... f5 $1 $17 {[%emt 0:00:21]} 24. a4 {[%emt 0:00:46]} cxd4 {[%emt 0:01:12]} 25. Qa2+ {[%emt 0:00:02]} Kh7 {[%emt 0:00:03]} 26. Qe6 {[%emt 0:00:11]} Bxe5 {[%emt 0:00:48]} 27. Qxf5+ {[%emt 0:00:03] [#]} g6 {[%emt 0:01:35]} (27... Kh8 $1 $17 {aiming for ...Bf6.} 28. Qxe5 (28. fxe5 $2 Rf8 $19) 28... d3 (28... Qxe5 29. fxe5 Rc2 30. Bxe4 $11) 29. Bxe4 d2 30. Bxb7 dxe1=Q (30... dxe1=R 31. Qxc7 Rxc7 32. Rxd8+ Kh7 33. Bxa6 $18) 31. Rxd8+ Rxd8 32. Qxc7 Qxf2+ 33. Bg2 Qd4) 28. Qxe5 $15 {[%emt 0:00:03]} Qxe5 {[%emt 0:00:02]} 29. fxe5 {[%emt 0:00:01]} d3 {[%emt 0:00:12] White must now prevent ...Rd4.} 30. Bxe4 {[%emt 0:00:38]} d2 {[%emt 0:00:02]} 31. Bxb7 {[%emt 0:00:09]} dxe1=Q {[%emt 0:00:05]} 32. Rxe1 $11 {[%emt 0:00:02][%mdl 4096] Endgame. KRR-KRB} Rc2 {[%emt 0:00:11][%csl LRb2,LRf2]} 33. Kg1 {[%emt 0:00:13]} a5 {[%emt 0:00:28][%cal Oh7g7][%mdl 1024] Black has compensation.} 34. b3 {[%emt 0:00:19]} Kg7 {[%emt 0:00:09]} 35. Ba6 {[%emt 0:00:08]} ({Of course not} 35. e6 Kf6 36. Ba6 (36. e7 Re8 $17) 36... Ke7 $15) 35... Kf8 {[%emt 0:00:12]} 36. Bc4 {[%emt 0:00:09]} Rdd2 {[%emt 0:00:04]} 37. Rf1 {[%emt 0:00:13]} g5 {[%emt 0:00:11]} 38. Kg2 {[%emt 0:00:07]} Ke7 {[%emt 0:00:04]} 39. Kf3 {[%emt 0:00:11]} Rc3+ {[%emt 0:00:27]} 40. Ke4 {[%emt 0:00:08]} Rcc2 $2 {[%emt 0:00:07][%mdl 8192] Loses the game.} (40... b5 $11 {and Black is okay.} 41. axb5 a4) 41. f4 $18 {[%emt 0:00:11][%cal Bf2f4,Bf4f5,Bf5f6,Bf6f7][%mdl 32] f5 would now be deadly.} Rg2 {[%emt 0:00:08]} (41... Rf2 $142 42. Rxf2 Rxf2) 42. f5 {[%emt 0:00:06] And now f6+ would win.} Rxg3 {[%emt 0:00:04]} 43. f6+ {[%emt 0:00:01] White mates.} Kf8 {[%emt 0:00:15]} 44. e6 {[%emt 0:00:03]} Rxc4+ {[%emt 0:00:08]} 45. bxc4 {[%emt 0:00:02]} Rxh3 {[%emt 0:00:03]} 46. f7 {[%emt 0:00:13]} Rh4+ {[%emt 0:00:10]} 47. Ke5 {[%emt 0:00:02]} Rf4 {[%emt 0:00:11]} 48. Rxf4 gxf4 {[%emt 0:00:01] Weighted Error Value: White=0.09 (flawless) /Black=0.41.  Loses game:     	---       	Black=1      Mistake:       	White=1     	Black=3      Inaccurate:     	White=3     	Black=3      OK:         	White=12    	Black=10     Best:        	White=6     	Black=2      Strong:       	---       	Black=1} 1-0

[Event "Tata Steel India Women Rapid 2024"]
[Site "Kolkata"]
[Date "2024.11.15"]
[Round "9.1"]
[White "Gunina, Valentina"]
[Black "Goryachkina, Aleksandra"]
[Result "0-1"]
[ECO "D50"]
[WhiteElo "2425"]
[BlackElo "2528"]
[Annotator "TA"]
[PlyCount "98"]
[EventDate "2024.11.06"]
[EventType "tourn"]
[EventCountry "IND"]
[SourceTitle "playchess.com"]
[Source "ChessBase"]
[SourceQuality "1"]
[TimeControl "1500+10"]

{[%evp 14,98,14,16,25,14,21,15,18,8,22,0,0,-8,-5,-7,-15,-4,70,-42,-39,-35,-31,-46,-35,-40,-33,-29,-37,-44,-43,-43,-43,-45,-37,-39,0,-37,-33,-64,-52,-83,-41,-48,-43,-58,-45,-45,-60,-100,-104,-125,-132,-200,-112,-112,-8,-180,-193,-202,-202,-280,-300,-294,-295,-297,-293,-233,-218,-222,-34,-189,-8,-8,-8,-8,-8,-8,0,-6,0,0,0,0,0,-29984,-29985]} 1. d4 {[%emt 0:00:03]} d5 {[%emt 0:00:02]} 2. c4 {[%emt 0:00:01]} e6 {[%emt 0:00:02]} 3. Nf3 {[%emt 0:00:02]} Nf6 {[%emt 0:00:03]} 4. Nc3 {[%emt 0:00:01]} c5 {[%emt 0:00:06]} 5. cxd5 {[%emt 0:00:05]} cxd4 {[%emt 0:00:02]} 6. Qxd4 {[%emt 0:00:03]} exd5 {[%emt 0:00:02]} 7. Bg5 {[%emt 0:00:02]} Be7 {[%emt 0:00:04]} 8. e3 {[%emt 0:00:02]} O-O {[%emt 0:00:05] D50: Queen's Gambit Declined: Dutch-Peruvian Gambit.} 9. Bd3 {[%emt 0:00:14]} h6 {[%emt 0:00:09]} 10. Bh4 {[%emt 0:00:02]} Nc6 {[%emt 0:00:05]} 11. Qa4 {[%emt 0:00:02]} Bd7 {[%emt 0:00:07]} 12. Qd1 {[%emt 0:01:18]} Bg4 {[%emt 0:01:07]} 13. Be2 {[%emt 0:00:02]} Bxf3 $146 {[%emt 0:02:18]} ({Predecessor:} 13... Qa5 14. O-O Rad8 15. Nd4 Bxe2 16. Ncxe2 g6 17. Qb3 Qa6 18. Rac1 Kg7 19. h3 Rc8 20. Rfd1 Rfd8 {0-1 Lomaia,D (1846)-Kosteniuk,A (2513) Titled Tuesday intern op 31st May Late blitz 2022 (10)}) 14. Bxf3 {[%emt 0:00:02][%cal Oh4f6]} d4 {[%emt 0:00:06]} 15. exd4 {[%emt 0:00:02]} Qxd4 {[%emt 0:02:22]} (15... Nxd4 $11 16. O-O Qb6) 16. Bg3 {[%emt 0:02:13]} (16. Qxd4 $14 Nxd4 17. Bxb7) 16... Qb4 $15 {[%emt 0:00:30]} 17. O-O {[%emt 0:02:25]} Rad8 {[%emt 0:00:32]} 18. Qb3 {[%emt 0:00:21]} Nd4 {[%emt 0:00:23]} 19. Qxb4 {[%emt 0:00:02]} Nxf3+ {[%emt 0:00:02]} 20. gxf3 {[%emt 0:00:02]} Bxb4 {[%emt 0:00:01]} 21. Rfd1 {[%emt 0:01:03]} Bxc3 {[%emt 0:01:35]} 22. bxc3 {[%emt 0:00:01]} Rxd1+ {[%emt 0:00:59]} 23. Rxd1 {[%emt 0:00:02][%mdl 4096] Endgame. KRB-KRN} Rc8 {[%emt 0:00:02]} 24. Be5 {[%emt 0:00:38]} Rc5 {[%emt 0:00:06]} 25. f4 {[%emt 0:00:52]} Ra5 {[%emt 0:01:09]} 26. Rd2 {[%emt 0:00:06]} b6 {[%emt 0:01:57]} 27. Kg2 {[%emt 0:00:42]} Ne4 {[%emt 0:00:39]} 28. Re2 {[%emt 0:00:05]} Nc5 {[%emt 0:00:12]} 29. Kf3 {[%emt 0:02:12]} f6 {[%emt 0:00:27]} 30. Bd6 {[%emt 0:01:12]} Ra3 {[%emt 0:00:48]} 31. Kg4 {[%emt 0:04:41]} Rxc3 {[%emt 0:00:46]} 32. Kf5 {[%emt 0:00:02] Kg6 is the strong threat.} Kh7 $1 {[%emt 0:01:36]} 33. Re7 {[%emt 0:01:05]} (33. Bf8 $17 {might work better.} Rd3 34. Re7) 33... Rd3 {[%emt 0:02:00]} ({Better is} 33... Ra3 $19 34. Rc7 Ra5 (34... Rxa2 35. Bf8 $11) 35. Bxc5 Rxc5+ (35... bxc5 $2 36. Kg4 $19) 36. Rxc5 bxc5) 34. Bxc5 $17 {[%emt 0:01:22] KRB-KR} Rd5+ {[%emt 0:00:36]} (34... bxc5 $17 35. Rxa7 Rh3) 35. Ke6 $2 {[%emt 0:00:18]} (35. Kg4 $1 $11 {and White stays safe.} Rxc5 (35... bxc5 36. Rxa7 h5+ 37. Kf3 $11) 36. Rxa7) 35... Rxc5 $19 {[%emt 0:00:02]} 36. Rxa7 {[%emt 0:00:08] KR-KR} Rc2 {[%emt 0:00:32]} 37. Kf7 {[%emt 0:00:58]} Rxf2 {[%emt 0:00:15]} 38. Ra3 {[%emt 0:01:31]} Rxf4 {[%emt 0:02:08]} 39. Rg3 {[%emt 0:00:02]} g5 {[%emt 0:00:13]} 40. Rb3 {[%emt 0:00:24]} Ra4 $1 {[%emt 0:01:19]} 41. a3 {[%emt 0:00:36] [#]} f5 $2 {[%emt 0:01:11]} (41... b5 $1 $19 {Threatens to win with ...Ra6.} 42. Kxf6 Rf4+ 43. Ke6 Kg6 44. Rxb5 Rf6+ 45. Ke7 Rf2 46. Rb6+ Kg7) 42. Rxb6 $2 {[%emt 0:01:20] [#]} (42. Kf6 $1 $15) 42... Ra7+ $2 {[%emt 0:01:25]} ({Much less strong is} 42... Rxa3 43. Kf6 $15) ({Black should play} 42... Ra8 $1 $19 {[%cal Of5f4] White must now prevent ...f4!} 43. h4 Rg8 (43... Rxa3 44. Kf6 $11) (43... gxh4 $2 44. a4 $19)) 43. Kf6 $11 {[%emt 0:00:04]} f4 {[%emt 0:00:01][%cal Of4f3]} 44. Rb3 $1 {[%emt 0:01:08]} Ra6+ {[%emt 0:00:42]} 45. Kf5 {[%emt 0:00:03]} Kg7 {[%emt 0:00:05]} 46. h4 {[%emt 0:00:10]} Rf6+ {[%emt 0:00:44]} 47. Kg4 {[%emt 0:00:11]} gxh4 {[%emt 0:00:03]} 48. a4 {[%emt 0:01:02]} f3 {[%emt 0:00:13] ( -> ...f2)} 49. Rxf3 $2 {[%emt 0:00:07][%mdl 8192] [#]} (49. Rb1 $11) 49... h5+ $1 {[%emt 0:00:03][%mdl 512]} 0-1